bitfinex-derivatives/quotes_SOLF0:USTF0_20240920
["timestamp","ask_amount","ask_price","bid_price","bid_amount"]
[1726790684245,3.4879,143.32,143.27,3.979]
[1726790685352,16.75,143.34,143.3,3.4882]
[1726790685353,3.4876,143.33,143.3,3.4882]
[1726790686256,16.75,143.32,143.21,6.9805]
[1726790686448,16.75,143.3,143.22,20.7963]
[1726790686947,16.75,143.3,143.24,3.4896]
[1726790687152,16.75,143.3,143.22,20.7963]
[1726790687354,3.4888,143.28,143.22,20.7963]
[1726790687948,3.4886,143.29,143.22,20.7963]
[1726790688544,3.4886,143.29,143.26,3.4891]
[1726790689052,18.1435,143.32,143.28,3.4887]
[1726790689243,16.75,143.32,143.28,3.4887]
[1726790689444,3.4882,143.31,143.28,3.4887]
[1726790690949,1.4385,143.36,143.26,16.75]
[1726790690950,16.75,143.35,143.26,16.75]
[1726790691457,3.4878,143.32,143.29,3.4883]
[1726790691761,18.1885,143.36,143.26,16.75]
[1726790692154,3.4877,143.33,143.29,3.4885]
[1726790692352,16.75,143.32,143.22,20.7963]
[1726790692655,3.4888,143.28,143.25,3.4895]
[1726790692853,3.56702388,143.3,143.22,20.7963]
[1726790693154,16.75,143.32,143.26,3.489]
[1726790693155,3.4886,143.29,143.26,3.489]
[1726790697961,16.75,143.32,143.24,16.75]
[1726790698363,3.4882,143.31,143.24,16.75]
[1726790699460,3.4882,143.31,143.28,3.4886]
[1726790700362,3.4883,143.3,143.27,3.4889]
[1726790701365,3.4885,143.29,143.27,3.4889]
[1726790701566,3.4885,143.29,143.26,3.4892]
[1726790702567,16.75,143.31,143.24,16.75]
[1726790703769,3.4884,143.3,143.27,3.489]
[1726790704369,3.4884,143.3,143.28,3.4887]
[1726790704568,139.62,143.44,143.26,16.75]
[1726790704761,18.1885,143.36,143.28,16.75]
[1726790705166,3.4874,143.34,143.31,3.488]
[1726790705663,18.1885,143.36,143.28,16.75]
[1726790705863,16.75,143.36,143.28,16.75]
[1726790706069,16.75,143.36,143.28,18.1054]
[1726790706467,3.4873,143.34,143.31,3.4878]
[1726790706666,16.75,143.36,143.28,18.1054]
[1726790707175,3.4871,143.35,143.32,3.4876]
[1726790707865,4.8353,143.37,143.34,3.4873]
[1726790708175,19.5105,143.4,143.32,16.75]
[1726790708375,3.4862,143.39,143.35,3.4869]
[1726790708572,3.41074938,143.43,143.34,16.75]
[1726790708779,16.75,143.46,143.36,16.75]
[1726790709079,3.4851,143.44,143.38,16.75]
[1726790709774,3.4851,143.44,143.4,3.4857]
[1726790712476,3.4845,143.46,143.42,3.4851]
[1726790712673,16.75,143.48,143.39,16.75]
[1726790712874,16.75,143.48,143.4,1.3807]
[1726790713071,3.4843,143.47,143.43,3.4849]
[1726790713681,3.4844,143.46,143.43,3.4849]
[1726790714382,16.75,143.49,143.4,1.3807]
[1726790714680,16.75,143.49,143.41,16.75]
[1726790715777,3.4842,143.47,143.44,3.4849]
[1726790715979,16.75,143.49,143.44,3.4849]
[1726790716374,3.4841,143.47,143.44,3.4849]
[1726790718087,16.75,143.49,143.42,3.4851]
[1726790718687,3.4845,143.46,143.42,3.4851]
[1726790719786,3.4845,143.46,143.41,1.3631]
[1726790719787,16.75,143.48,143.41,1.3631]
[1726790720190,3.4846,143.46,143.42,3.4853]
[1726790720485,16.75,143.48,143.42,3.4853]
[1726790720886,3.4845,143.46,143.42,3.4853]
[1726790722182,16.75,143.48,143.41,3.4855]
[1726790722387,16.75,143.48,143.4,1.3807]
[1726790722388,16.75,143.46,143.4,1.3807]
[1726790722591,16.75,143.46,143.4,3.4857]
[1726790723085,3.4851,143.44,143.4,3.4857]
[1726790723487,16.75,143.46,143.4,3.4857]
[1726790723688,3.4857,143.41,143.37,1.3231]
[1726790723881,3.4857,143.41,143.36,1.34]
[1726790724286,20.15473999,143.42,143.35,1.4471]
[1726790724488,1.3574,143.44,143.32,1.4361]
[1726790724489,16.75,143.4,143.32,1.4361]
[1726790724691,20.22621686,143.4,143.32,1.4361]
[1726790724892,20.22621686,143.4,143.3,1.327]
[1726790724893,16.75,143.38,143.3,1.327]
[1726790725289,3.4872,143.35,143.31,3.4879]
[1726790725490,16.75,143.36,143.28,1.401]
[1726790725786,16.75,143.34,143.28,1.401]
[1726790726093,3.488,143.32,143.28,1.401]
[1726790726290,16.75,143.36,143.28,18.151]
[1726790726496,16.75,143.36,143.29,3.4884]
[1726790726497,3.4876,143.33,143.29,3.4884]
[1726790728584,3.4874,143.34,143.3,3.4881]
[1726790729395,3.4875,143.33,143.3,3.4881]
[1726790730394,3.4873,143.35,143.31,3.488]
[1726790730792,16.75,143.36,143.31,3.488]
[1726790731796,3.4874,143.34,143.31,3.488]
[1726790733789,3.4874,143.34,143.3,3.4882]
[1726790736402,3.4876,143.33,143.3,3.4882]
[1726790736603,3.4876,143.33,143.29,3.4884]
[1726790737494,16.75,143.36,143.28,4.8897]
[1726790737495,3.4878,143.32,143.28,4.8897]
[1726790737699,6.9116835,143.32,143.28,4.8897]
[1726790737899,6.9116835,143.32,143.28,3.4887]
[1726790738201,3.4881,143.31,143.28,3.4887]
[1726790738802,3.4879,143.32,143.29,3.4884]
[1726790739499,7.04499481,143.32,143.29,3.4884]
[1726790742906,2.6864,143.35,143.27,16.75]
[1726790743404,3.4874,143.34,143.27,16.75]
[1726790744108,6.1736,143.35,143.31,3.4879]
[1726790744309,2.6864,143.35,143.31,3.4879]
[1726790745905,3.4873,143.34,143.31,3.4879]
[1726790748819,3.4877,143.33,143.29,3.4884]
[1726790749308,3.4877,143.33,143.25,18.1861]
[1726790750916,3.4878,143.32,143.25,18.1861]
[1726790751117,19.4364,143.35,143.25,18.1861]
[1726790751320,19.4364,143.35,143.29,3.4883]
[1726790751819,3.4876,143.33,143.3,3.4882]
[1726790755922,14.2176,143.33,143.3,3.4882]
[1726790758420,3.44573734,143.32,143.3,3.4882]
[1726790758920,3.44573734,143.32,143.3,10.73]
[1726790759225,14.2175,143.34,143.3,10.73]
[1726790759623,14.2175,143.34,143.31,3.488]
[1726790760125,3.4875,143.33,143.31,3.488]
[1726790760322,3.4875,143.33,143.3,14.2181]
[1726790760822,3.42200973,143.32,143.3,3.4881]
[1726790761824,3.42200973,143.32,143.29,10.73]
[1726790761825,10.73,143.36,143.31,10.73]
[1726790762021,12.1659,143.39,143.34,10.73]
[1726790762415,3.4865,143.38,143.35,3.4869]
[1726790762822,10.73,143.39,143.34,10.73]
[1726790763118,10.73,143.39,143.35,10.73]
[1726790763119,3.4863,143.39,143.35,10.73]
[1726790763519,3.4863,143.39,143.35,14.2169]
[1726790763723,14.2163,143.38,143.35,3.4869]
[1726790764025,16.76,143.38,143.32,3.4876]
[1726790764922,16.76,143.36,143.29,16.76]
[1726790765525,3.4871,143.35,143.31,3.4879]
[1726790765717,16.76,143.36,143.28,1.4128]
[1726790766125,3.4875,143.34,143.3,3.4882]
[1726790766318,16.76,143.36,143.28,1.4128]
[1726790766516,3.4871,143.35,143.31,3.4879]
[1726790767722,3.4871,143.35,143.32,3.4877]
[1726790767918,16.76,143.38,143.3,16.76]
[1726790768333,3.4868,143.36,143.32,3.4877]
[1726790769026,3.4868,143.36,143.33,3.4875]
[1726790771420,16.76,143.36,143.28,1.4128]
[1726790771719,16.76,143.33,143.28,1.4128]
[1726790771927,3.42898844,143.32,143.28,1.4128]
[1726790772929,6.91688844,143.32,143.29,3.4884]
[1726790774229,20.18898844,143.32,143.25,1.4361]
[1726790774828,3.4881,143.31,143.28,3.4887]
[1726790775333,3.4881,143.31,143.27,3.4889]
[1726790777340,3.4883,143.3,143.27,3.4889]
[1726790778031,16.76,143.3,143.23,1.3835]
[1726790778436,3.4899,143.24,143.2,6.2554]
[1726790778627,16.76,143.26,143.2,2.7648]
[1726790779029,16.76,143.26,143.21,3.4903]
[1726790779441,3.4896,143.25,143.21,3.4903]
[1726790779639,3.48858372,143.24,143.21,3.4903]
[1726790780339,3.48858372,143.24,143.22,3.4902]
[1726790781443,6.97838372,143.24,143.21,3.4904]
[1726790781738,3.48858372,143.24,143.18,110.02970532]
[1726790781939,16.76,143.26,143.18,110.02970532]
[1726790782540,3.4899,143.24,143.2,3.4906]
[1726790782742,3.46197422,143.23,143.18,110.02970532]
[1726790783643,3.46197422,143.23,143.2,3.4905]
[1726790784640,6.95197422,143.23,143.2,3.4905]
[1726790784839,3.49,143.23,143.2,3.4905]
[1726790785346,7.0611555,143.23,143.19,3.4908]
[1726790785533,16.76,143.22,143.14,16.76]
[1726790785739,16.76,143.21,143.13,1.4071]
[1726790786143,20.2506,143.21,143.17,3.4913]
[1726790787242,3.4909,143.2,143.16,3.4915]
[1726790787444,16.76,143.21,143.13,1.4071]
[1726790787935,16.76,143.19,143.14,3.4921]
[1726790788341,3.4913,143.18,143.14,3.4921]
[1726790788540,1.3574,143.22,143.12,3.4926]
[1726790788846,3.492,143.15,143.12,3.4926]
[1726790789141,16.76,143.16,143.12,3.4926]
[1726790789544,20.2518,143.16,143.12,3.4926]
[1726790789738,3.48253284,143.15,143.12,3.4926]
[1726790789941,3.48253284,143.15,143.11,3.4928]
[1726790790140,16.76,143.16,143.11,3.4928]
[1726790790743,3.492,143.15,143.11,3.4928]
[1726790790944,3.43598832,143.14,143.11,3.4928]
[1726790791946,3.56980808,143.13,143.11,3.4928]
[1726790792148,3.492,143.15,143.11,3.4928]
[1726790792644,16.76,143.14,143.09,3.4932]
[1726790792850,16.76,143.14,143.08,1.3474]
[1726790793237,20.2523,143.14,143.1,3.493]
[1726790793448,16.76,143.14,143.08,1.3474]
[1726790793949,3.4925,143.13,143.09,3.4932]
[1726790796448,3.487138,143.12,143.09,3.4932]
[1726790796954,3.4928,143.12,143.08,3.4935]
[1726790797146,3.52208343,143.11,143.06,1.3998]
[1726790797345,16.76,143.12,143.06,1.3998]
[1726790797651,3.493,143.11,143.08,3.4936]
[1726790797849,16.76,143.12,143.06,18.1598]
[1726790798059,16.76,143.14,143.06,18.1598]
[1726790798260,20.32471605,143.14,143.06,18.1598]
[1726790798557,3.4925,143.13,143.09,3.4932]
[1726790804359,20.32471605,143.14,143.06,19.597]
[1726790804360,3.4928,143.12,143.06,19.597]
[1726790804561,20.2528,143.12,143.08,3.4935]
[1726790804958,3.493,143.11,143.08,3.4935]
[1726790805265,3.493,143.11,143.07,3.4938]
[1726790806266,3.4932,143.1,143.07,3.4938]
[1726790806454,3.4932,143.1,143.06,3.494]
[1726790809469,3.4934,143.09,143.06,3.494]
[1726790809857,3.4934,143.09,143.02,19.4756]
[1726790810058,3.56471605,143.14,143.02,19.4756]
[1726790810059,14.2338,143.08,143.03,10.74]
[1726790810666,14.2338,143.08,143.05,3.4942]
[1726790810859,10.74,143.06,143.02,13.4556]
[1726790811058,10.74,143.06,143.04,3.4944]
[1726790813169,10.74,143.06,143.05,3.4944]
[1726790813667,10.74,143.07,143.06,3.4941]
[1726790813868,14.21507238,143.08,143.06,3.4941]
[1726790814058,10.74,143.08,143.06,3.4941]
[1726790814570,14.30841688,143.08,143.06,3.4941]
[1726790814870,10.74,143.08,143.06,3.4941]
[1726790816666,14.26446979,143.11,143.07,10.74]
[1726790816871,10.74,143.11,143.06,10.74]
[1726790817070,14.19350496,143.11,143.08,3.4936]
[1726790817469,10.74,143.1,143.08,3.4936]
[1726790818072,16.77,143.12,143.08,3.4936]
[1726790818275,3.4223923,143.11,143.08,3.4936]
[1726790818775,6.9153923,143.11,143.08,3.4936]
[1726790820363,16.77,143.1,143.02,19.4856]
[1726790820870,16.77,143.08,143.02,2.7156]
[1726790821169,16.77,143.15,143.02,2.7156]
[1726790821170,16.77,143.07,143.02,2.7156]
[1726790821365,16.77,143.07,143.03,3.4948]
[1726790821569,16.77,143.07,143.02,1.3465]
[1726790821764,16.77,143.07,142.98,19.5983]
[1726790821972,3.4943,143.06,143.02,3.495]
[1726790822175,16.77,143.07,143.02,3.495]
[1726790823074,16.77,143.05,143.02,3.495]
[1726790823275,16.77,143.05,143.01,3.4953]
[1726790823870,16.77,143.05,143.0,3.4956]
[1726790824079,16.77,143.05,142.98,2.8283]
[1726790824277,20.2645,143.05,142.98,2.8283]
[1726790824475,20.2645,143.05,143.0,3.4956]
[1726790824675,16.77,143.03,142.98,2.8283]
[1726790825074,20.2649,143.03,142.99,3.4957]
[1726790826775,20.2649,143.03,143.0,3.4955]
[1726790826776,16.77,143.03,143.0,3.4955]
[1726790827170,16.77,143.05,142.98,2.8283]
[1726790827372,3.54169641,143.08,143.0,16.77]
[1726790827675,3.42803242,143.07,143.04,3.4944]
[1726790828582,6.92193242,143.07,143.04,3.4944]
[1726790828881,3.4939,143.07,143.04,3.4944]
[1726790829880,3.4738124,143.06,143.04,3.4944]
[1726790830076,6.9679124,143.06,143.03,3.4947]
[1726790830287,3.4941,143.06,143.03,3.4947]
[1726790831384,3.43011005,143.05,143.03,3.4947]
[1726790831982,6.92461005,143.05,142.98,19.5983]
[1726790832283,3.43011005,143.05,142.98,19.5983]
[1726790832485,16.77,143.07,142.98,19.5983]
[1726790832791,16.77,143.05,142.98,2.8283]
[1726790833284,20.2645,143.05,143.02,3.4951]
[1726790833486,4.2428,143.13,142.98,19.5983]
[1726790833487,16.77,143.07,142.98,19.5983]
[1726790834078,3.56157333,143.06,142.98,19.5983]
[1726790834784,3.56157333,143.06,143.03,3.4947]
[1726790835582,7.05567333,143.06,143.03,3.4947]
[1726790838888,16.77,143.07,142.98,19.5983]
[1726790839086,20.25314486,143.08,143.06,3.494]
[1726790839285,3.48314486,143.08,143.06,3.494]
[1726790839485,3.4935,143.09,143.05,3.4942]
[1726790839694,3.51496558,143.08,143.05,3.4942]
[1726790839988,20.28496558,143.08,143.0,16.77]
[1726790840189,16.77,143.08,143.0,16.77]
[1726790840388,20.2637,143.08,143.0,16.77]
[1726790840789,23.82237536,143.08,143.0,16.77]
[1726790841387,20.32867536,143.08,143.0,16.77]
[1726790841985,16.77,143.1,143.07,3.4937]
[1726790842183,16.77,143.1,143.02,16.77]
[1726790842393,3.54019636,143.12,143.04,16.77]
[1726790842590,3.54019636,143.12,143.06,16.77]
[1726790842796,16.77,143.14,143.06,16.77]
[1726790844095,4.1845,143.18,143.08,16.77]
[1726790844096,16.77,143.16,143.08,16.77]
[1726790844294,20.2618,143.16,143.12,3.4925]
[1726790844591,4.1845,143.18,143.05,2.8283]
[1726790844592,16.77,143.15,143.06,16.77]
[1726790844798,16.77,143.11,143.05,2.8283]
[1726790844993,20.23294681,143.11,143.05,2.8283]
[1726790845698,20.23294681,143.11,143.09,3.4934]
[1726790846490,20.23294681,143.11,143.05,2.8283]
[1726790846491,20.23294681,143.11,143.08,3.4935]
[1726790847490,1.3536,143.17,143.05,6.31812877]
[1726790847491,20.2625,143.13,143.05,6.31812877]
[1726790847685,16.77,143.13,143.05,2.8283]
[1726790847890,16.77,143.13,143.1,3.493]
[1726790848298,16.77,143.14,143.06,16.77]
[1726790849398,16.77,143.14,143.11,3.4927]
[1726790849891,16.77,143.14,143.12,3.4926]
[1726790850093,20.2619,143.16,143.12,3.4926]
[1726790851694,3.492,143.15,143.12,3.4926]
[1726790852895,3.492,143.15,143.06,16.77]
[1726790852896,20.2617,143.16,143.13,3.4923]
[1726790853094,16.77,143.16,143.06,16.77]
[1726790853492,20.2618,143.16,143.06,16.77]
[1726790853989,20.2618,143.16,143.12,3.4925]
[1726790854800,20.2618,143.16,143.13,3.4924]
[1726790855297,20.2618,143.16,143.12,3.4925]
[1726790855698,20.2618,143.16,143.13,3.4924]
[1726790856495,3.492,143.15,143.12,3.4925]
[1726790856703,16.77,143.14,143.12,3.4925]
[1726790857599,16.77,143.13,143.05,2.8283]
[1726790857898,3.50936369,143.12,143.05,2.8283]
[1726790858293,3.50936369,143.12,143.09,3.4932]
[1726790858601,3.50936369,143.12,143.05,2.8283]
[1726790860396,16.77,143.11,143.05,2.8283]
[1726790860598,3.51834299,143.1,143.05,2.8283]
[1726790861196,3.51834299,143.1,143.07,3.4937]
[1726790862003,3.4932,143.1,143.07,3.4937]
[1726790862197,3.57664852,143.09,143.07,3.4937]
[1726790862708,16.77,143.11,143.08,3.4935]
[1726790863295,20.34105618,143.11,143.08,3.4935]
[1726790864802,20.34105618,143.11,143.05,2.8283]
[1726790864803,20.34105618,143.11,143.03,1.401]
[1726790865007,16.77,143.09,143.03,1.401]
[1726790865408,20.2634,143.09,143.06,3.4939]
[1726790865703,23.73634745,143.09,143.06,3.4939]
[1726790866306,20.24294745,143.09,143.06,3.4939]
[1726790867303,20.24294745,143.09,143.0,2.7948]
[1726790867304,20.24294745,143.09,143.0,19.5648]
[1726790867604,16.77,143.07,143.0,2.7948]
[1726790867898,3.4942,143.06,143.02,3.4949]
[1726790868697,3.4942,143.06,143.03,3.4948]
[1726790868896,16.77,143.07,143.03,3.4948]
[1726790869404,20.264,143.07,143.03,3.4948]
[1726790869800,16.77,143.07,143.03,3.4948]
[1726790870809,3.4941,143.06,143.03,3.4948]
[1726790871712,20.264,143.07,143.03,3.4948]
[1726790872006,16.77,143.07,143.03,3.4948]
[1726790872808,3.4941,143.06,143.03,3.4948]
[1726790875106,16.77,143.05,143.02,3.4949]
[1726790875305,16.77,143.04,142.96,1.4438]
[1726790875906,20.2648,143.04,142.96,1.4438]
[1726790876107,16.77,143.04,142.99,3.4956]
[1726790876610,3.4949,143.03,142.96,1.4438]
[1726790878006,3.4951,143.02,142.99,3.4957]
[1726790878208,16.77,143.02,142.93,1.3962]
[1726790878711,16.77,143.02,142.97,3.4963]
[1726790878712,3.4955,143.01,142.97,3.4963]
[1726790878904,7.05397383,143.01,142.97,3.4963]
[1726790879413,3.55847383,143.01,142.98,3.496]
[1726790879610,20.2652,143.02,142.98,3.496]
[1726790880308,3.56791646,143.01,142.98,3.496]
[1726790881216,3.4954,143.01,142.97,3.4963]
[1726790881407,3.41462513,143.0,142.97,3.4963]
[1726790882315,20.18462513,143.0,142.97,3.4963]
[1726790882515,16.77,142.98,142.95,3.4967]
[1726790882707,20.2549252,142.98,142.95,3.4967]
[1726790883314,20.2549252,142.98,142.93,1.3962]
[1726790883916,10.75,142.98,142.94,10.75]
[1726790884408,10.75,142.97,142.96,3.4964]
[1726790884914,10.75,142.97,142.95,3.4966]
[1726790885113,10.75,142.96,142.95,3.4966]
[1726790887117,10.75,142.96,142.92,2.7977]
[1726790887118,2.67,143.02,142.96,3.4965]
[1726790887319,10.75,142.98,142.94,10.75]
[1726790887715,14.22446242,143.0,142.95,10.75]
[1726790888313,10.75,142.98,142.96,3.4964]
[1726790889018,10.75,142.97,142.95,3.4967]
[1726790890315,10.75,142.96,142.95,3.4967]
[1726790892015,3.42713307,142.97,142.95,3.4967]
[1726790893017,3.42713307,142.97,142.94,3.4969]
[1726790893219,6.92343307,142.97,142.94,3.4969]
[1726790893417,3.42713307,142.97,142.94,3.4969]
[1726790896527,20.2965,142.97,142.93,3.4972]
[1726790896723,20.25291118,142.97,142.9,15.0]
[1726790897127,3.4967,142.96,142.92,3.4974]
[1726790897329,16.8,142.95,142.9,15.0]
[1726790897529,16.8,142.93,142.9,15.0]
[1726790898324,3.4489496,142.92,142.9,15.0]
[1726790900826,3.4975,142.92,142.9,15.0]
[1726790901127,16.8,142.91,142.9,15.0]
[1726790901624,20.32586203,142.91,142.9,15.0]
[1726790906733,16.8,142.93,142.9,15.0]
[1726790906926,3.52271238,142.92,142.9,15.0]
[1726790907126,7.02041238,142.92,142.9,15.0]
[1726790907328,3.52271238,142.92,142.9,15.0]
[1726790907732,16.8,142.93,142.9,15.0]
[1726790907932,3.48141692,142.92,142.9,15.0]
[1726790908130,16.8,142.93,142.9,15.0]
[1726790908432,16.8,142.93,142.91,3.4976]
[1726790908631,16.8,142.93,142.9,15.0]
[1726790908831,16.8,142.93,142.91,3.4978]
[1726790913333,3.4968,142.95,142.9,15.0]
[1726790913635,16.8,142.94,142.9,15.0]
[1726790913839,16.8,142.94,142.91,2.21]
[1726790914034,10.74,142.92,142.91,5.7076]
[1726790915540,14.24416442,142.92,142.91,2.21]
[1726790916133,14.24416442,142.92,142.83,14.9373]
[1726790916437,10.74,142.87,142.83,14.9373]
[1726790917827,10.74,142.87,142.86,3.499]
[1726790918532,4.1983,142.96,142.85,10.74]
[1726790918741,10.74,142.91,142.86,10.74]
[1726790919136,10.74,142.91,142.9,3.4979]
[1726790919331,10.74,142.91,142.87,4.12]
[1726790919532,10.74,142.89,142.88,3.4984]
[1726790921435,10.74,142.9,142.89,3.4981]
[1726790923535,3.4972,142.94,142.9,3.4979]
[1726790923733,10.74,142.91,142.9,3.4979]
[1726790925240,10.74,142.91,142.89,3.4982]
[1726790925433,10.74,142.9,142.89,3.4982]
[1726790926733,14.21921078,142.91,142.89,3.4982]
[1726790926937,10.74,142.91,142.89,3.4982]
[1726790927443,14.23356021,142.92,142.88,1.05]
[1726790927632,10.74,142.92,142.88,1.05]
[1726790927833,10.74,142.92,142.9,3.498]
[1726790928241,14.25175948,142.92,142.9,3.498]
[1726790928441,10.74,142.91,142.88,1.05]
[1726790928751,10.74,142.89,142.88,1.05]
[1726790930951,10.74,142.89,142.88,4.5485]
[1726790931250,10.74,142.9,142.88,1.05]
[1726790931949,10.74,142.92,142.88,1.05]
[1726790932849,10.74,142.92,142.91,3.4977]
[1726790933245,10.74,142.92,142.88,1.05]
[1726790933448,10.74,142.92,142.9,3.4979]
[1726790933640,10.74,142.91,142.88,1.05]
[1726790933844,10.74,142.89,142.88,1.05]
[1726790934044,14.17148214,142.89,142.88,1.05]
[1726790934849,14.17148214,142.89,142.88,4.5485]
[1726790934850,10.74,142.89,142.88,4.5485]
[1726790935652,10.74,142.91,142.88,1.05]
[1726790936049,10.74,142.91,142.89,3.4981]
[1726790936549,3.48082326,142.92,142.9,3.498]
[1726790936752,10.74,142.92,142.88,1.05]
[1726790936951,10.74,142.91,142.88,1.05]
[1726790937351,10.74,142.91,142.89,3.4981]
[1726790937848,10.74,142.91,142.88,1.05]
[1726790938049,10.74,142.9,142.88,4.5485]
[1726790938553,10.74,142.9,142.88,8.6685]
[1726790940355,10.74,142.9,142.89,3.4983]
[1726790942452,10.74,142.9,142.88,7.6184]
[1726790943157,10.74,142.9,142.88,8.6684]
[1726790946852,10.74,142.9,142.88,13.2084]
[1726790947863,4.1983,142.96,142.88,20.45]
[1726790948058,12.97944242,143.01,142.91,10.74]
[1726790948368,10.74,142.99,142.95,10.74]
[1726790949260,14.32725765,143.01,142.96,10.74]
[1726790949456,10.74,143.01,142.96,10.74]
[1726790949653,10.74,143.01,142.97,3.4962]
[1726790949963,3.53193639,143.0,142.97,3.4962]
[1726790950157,3.4953,143.02,142.98,3.496]
[1726790950553,3.52703918,143.01,142.98,3.496]
[1726790950754,3.52703918,143.01,142.97,3.4963]
[1726790950755,16.79,143.01,142.97,3.4963]
[1726790950962,3.46337548,143.0,142.97,3.4963]
[1726790951562,6.95897548,143.0,142.96,3.4965]
[1726790952653,6.95897548,143.0,142.94,3.4969]
[1726790952654,3.4961,142.98,142.94,3.4969]
[1726790952859,16.79,142.98,142.9,2.6918]
[1726790953264,20.2867,142.96,142.92,3.4974]
[1726790953565,16.79,142.96,142.91,4.12]
[1726790953762,3.4968,142.95,142.91,7.6177]
[1726790954663,20.2867,142.96,142.92,3.4975]
[1726790954863,18.2506,142.98,142.91,4.12]
[1726790955264,21.7468,142.98,142.91,4.12]
[1726790955959,21.7468,142.98,142.93,3.4971]
[1726790956564,21.7468,142.98,142.94,3.497]
[1726790957370,3.4963,142.97,142.94,3.497]
[1726790957863,3.4966,142.96,142.93,3.4971]
[1726790958070,3.4966,142.96,142.91,4.12]
[1726790958071,16.79,142.96,142.91,4.12]
[1726790958864,20.2867,142.96,142.93,3.4973]
[1726790959066,20.2867,142.96,142.91,5.17]
[1726790959375,16.79,142.96,142.93,3.4972]
[1726790959681,1.4152,142.99,142.91,21.96]
[1726790959878,23.74907548,143.0,142.96,3.4964]
[1726790960177,4.1478,143.05,142.92,16.79]
[1726790960178,16.79,143.02,142.92,16.79]
[1726790960373,4.1478,143.05,142.94,16.79]
[1726790960374,16.79,143.03,142.94,16.79]
[1726790960581,20.9378,143.05,142.96,16.79]
[1726790960976,20.9378,143.05,142.99,3.4957]
[1726790960977,3.4947,143.04,142.99,3.4957]
[1726790961176,3.4947,143.04,142.97,18.2201]
[1726790961680,23.0544,143.05,143.0,3.4954]
[1726790961882,16.79,143.07,142.97,18.2201]
[1726790962084,16.79,143.07,142.98,2.9092]
[1726790962376,3.4943,143.06,143.01,3.4952]
[1726790962878,3.4943,143.06,143.02,3.495]
[1726790963581,3.4943,143.06,143.03,4.54]
[1726790966883,16.79,143.07,143.03,4.54]
[1726790967080,20.26294745,143.09,143.03,4.54]
[1726790967281,16.79,143.11,143.03,21.33]
[1726790967483,20.2831,143.11,143.03,21.33]
[1726790967989,3.4932,143.1,143.03,21.33]
[1726790968585,3.4932,143.1,143.05,3.4943]
[1726790969286,3.4932,143.1,143.06,3.4941]
[1726790969884,16.79,143.11,143.03,21.33]
[1726790970192,16.79,143.11,143.04,2.7675]
[1726790970587,3.4934,143.1,143.05,3.4943]
[1726790970790,6.26071094,143.13,143.04,2.7675]
[1726790970791,16.79,143.09,143.04,2.7675]
[1726790970984,16.79,143.09,143.04,1.333]
[1726790971591,3.4937,143.08,143.04,4.8274]
[1726790971989,16.79,143.09,143.04,1.333]
[1726790972285,16.79,143.11,143.04,1.333]